bitfinex/quotes_SOLUSD_20240725
["timestamp","ask_amount","ask_price","bid_price","bid_amount"]
[1721889490609,1.40187463,171.26,171.16,20.0]
[1721889490610,14.75,171.21,171.16,20.0]
[1721889491312,14.75,171.21,171.16,40.0]
[1721889491511,14.75,171.21,171.16,20.0]
[1721889491912,14.75,171.21,171.16,40.0]
[1721889492131,14.75,171.22,171.16,54.75]
[1721889492638,14.75,171.23,171.17,14.75]
[1721889492938,59.0,171.27,171.18,20.0]
[1721889493129,14.75,171.22,171.18,20.0]
[1721889493537,14.75,171.22,171.18,40.0]
[1721889493741,14.75,171.22,171.18,20.0]
[1721889494036,14.75,171.23,171.18,20.0]
[1721889494443,14.75,171.21,171.15,20.0]
[1721889494649,14.75,171.2,171.15,20.0]
[1721889499527,14.75,171.17,171.12,22.46700803]
[1721889499728,14.75,171.17,171.13,45.0]
[1721889500035,14.75,171.16,171.12,6.06860803]
[1721889500845,14.75,171.15,171.09,54.75]
[1721889501017,1.40187463,171.2,171.09,20.0]
[1721889501018,14.75,171.13,171.09,20.0]
[1721889501916,14.75,171.14,171.09,20.0]
[1721889502426,14.75,171.15,171.09,34.75]
[1721889503226,14.75,171.14,171.09,20.0]
[1721889504151,14.75,171.13,171.07,14.75]
[1721889504548,14.75,171.12,171.06,14.75]
[1721889504862,14.75,171.13,171.07,59.75]
[1721889505027,14.75,171.13,171.08,14.75]
[1721889505730,14.75,171.14,171.08,14.75]
[1721889507727,14.75,171.16,171.1,34.75]
[1721889507920,14.75,171.16,171.11,15.91864413]
[1721889508446,403.95,171.17,171.11,14.75]
[1721889508660,389.2,171.17,171.12,34.75]
[1721889508830,389.2,171.17,171.13,14.75]
[1721889509225,389.2,171.17,171.14,20.0]
[1721889509732,389.2,171.17,171.15,14.75]
[1721889509938,389.2,171.17,171.15,34.75]
[1721889510339,14.75,171.22,171.16,34.75]
[1721889510528,21.2698,171.23,171.16,34.75]
[1721889510730,14.75,171.21,171.16,14.75]
[1721889511134,14.75,171.21,171.15,34.75]
[1721889511457,14.75,171.21,171.15,14.75]
[1721889513150,14.75,171.21,171.16,41.16822734]
[1721889513849,14.75,171.22,171.16,55.91822734]
[1721889514257,14.75,171.22,171.16,35.91822734]
[1721889514459,14.75,171.22,171.17,20.0]
[1721889514635,14.75,171.22,171.18,1.16815829]
[1721889514836,14.75,171.23,171.18,1.16815829]
[1721889516143,389.2,171.26,171.18,1.16815829]
[1721889516347,14.75,171.22,171.18,1.16815829]
[1721889518566,14.75,171.22,171.16,34.75]
[1721889519447,14.75,171.22,171.17,14.75]
[1721889519959,471.0601,171.27,171.16,34.75]
[1721889519960,14.75,171.21,171.16,34.75]
[1721889523058,14.75,171.22,171.18,20.0]
[1721889523248,14.75,171.23,171.18,34.75]
[1721889524166,14.75,171.23,171.18,20.0]
[1721889525061,14.75,171.23,171.18,40.0]
[1721889525642,37.6101,171.27,171.18,20.0]
[1721889525643,14.75,171.22,171.18,20.0]
[1721889529463,14.75,171.21,171.18,20.0]
[1721889529667,14.75,171.21,171.16,34.75]
[1721889530555,1.40187463,171.26,171.16,34.75]
[1721889530760,14.75,171.21,171.17,45.0]
[1721889531246,14.75,171.21,171.16,34.75]
[1721889533469,14.75,171.2,171.14,34.75]
[1721889533655,21.40187463,171.26,171.14,34.75]
[1721889533656,14.75,171.19,171.14,20.0]
[1721889534849,14.75,171.18,171.14,20.0]
[1721889535672,14.75,171.18,171.12,51.1813]
[1721889535846,14.75,171.17,171.12,36.4313]
[1721889536368,14.75,171.18,171.12,51.1813]
[1721889537566,1.40187463,171.24,171.12,51.1813]
[1721889537750,14.75,171.18,171.13,45.0]
[1721889538866,14.75,171.18,171.12,51.1813]
[1721889538867,14.75,171.17,171.12,36.4313]
[1721889539469,14.75,171.17,171.12,16.4313]
[1721889539780,14.75,171.14,171.1,20.0]
[1721889541355,14.75,171.15,171.1,34.75]
[1721889541558,389.2,171.19,171.1,34.75]
[1721889541559,14.75,171.16,171.1,34.75]
[1721889541753,14.75,171.16,171.1,40.85122969]
[1721889541952,14.75,171.16,171.1,34.75]
[1721889542153,14.75,171.16,171.1,54.75]
[1721889543777,14.75,171.13,171.1,20.0]
[1721889544153,14.75,171.14,171.1,20.0]
[1721889544856,14.75,171.16,171.1,34.75]
[1721889545354,14.75,171.16,171.1,54.75]
[1721889545777,14.75,171.16,171.11,14.75]
[1721889545956,14.75,171.17,171.12,20.0]
[1721889546159,14.75,171.18,171.12,34.75]
[1721889546666,14.75,171.18,171.13,14.75]
[1721889546982,14.75,171.21,171.15,14.75]
[1721889547168,14.75,171.21,171.15,34.75]
[1721889548751,14.75,171.2,171.15,20.0]
[1721889549048,14.75,171.21,171.16,0.3]
[1721889549776,6.3209,171.25,171.17,54.75]
[1721889549777,14.75,171.23,171.17,54.75]
[1721889549975,14.75,171.23,171.18,1.16815088]
[1721889550182,14.75,171.24,171.18,15.91815088]
[1721889550879,14.75,171.24,171.19,20.0]
[1721889551185,14.75,171.24,171.2,1.16807416]
[1721889551568,14.75,171.2,171.16,0.3]
[1721889551879,1.46065013,171.22,171.16,0.3]
[1721889552081,14.75,171.17,171.16,0.3]
[1721889552884,14.75,171.18,171.16,0.3]
[1721889553281,14.75,171.17,171.16,0.3]
[1721889554395,14.75,171.18,171.16,0.3]
[1721889554682,21.3763,171.23,171.16,0.3]
[1721889554986,14.75,171.2,171.16,0.3]
[1721889557259,14.75,171.19,171.16,0.3]
[1721889557462,14.75,171.2,171.16,20.3]
[1721889557765,14.75,171.21,171.18,20.0]
[1721889558761,52.7,171.3,171.16,15.05]
[1721889558762,22.8192,171.31,171.2,34.75]
[1721889559078,14.75,171.27,171.23,20.0]
[1721889559289,14.75,171.28,171.23,40.0]
[1721889559481,14.75,171.28,171.23,20.0]
[1721889560192,389.2,171.3,171.23,20.0]
[1721889560371,22.7812,171.36,171.28,20.0]
[1721889561257,29.5,171.34,171.23,20.0]
[1721889561457,1.45967325,171.33,171.23,20.0]
[1721889561679,1.45969895,171.32,171.21,20.0]
[1721889561888,29.5,171.31,171.21,20.0]
[1721889563470,29.5,171.31,171.23,20.0]
[1721889564688,1.45969885,171.3,171.2,36.0569]
[1721889564984,1.45969885,171.3,171.21,45.0]
[1721889565980,1.45969885,171.3,171.2,36.0569]
[1721889566887,389.2,171.29,171.2,36.0569]
[1721889567856,389.2,171.29,171.22,20.0]
[1721889568767,389.2,171.29,171.24,20.0]
[1721889569285,389.2,171.29,171.22,20.0]
[1721889569694,389.2,171.29,171.24,20.0]
[1721889570994,389.2,171.29,171.23,45.0]
[1721889571979,389.2,171.29,171.2,36.0569]
[1721889571980,418.7,171.29,171.2,56.0569]
[1721889572193,22.1075,171.28,171.2,20.0]
[1721889573021,389.2,171.27,171.2,20.0]
[1721889574197,389.2,171.27,171.16,1.23406714]
[1721889574198,389.2,171.27,171.22,20.0]
[1721889576707,29.5,171.36,171.29,20.0]
[1721889576878,21.2854,171.37,171.27,20.0]
[1721889577083,29.5,171.36,171.27,20.0]
[1721889579306,30.95937268,171.36,171.25,20.0]
[1721889579481,30.95937268,171.36,171.24,20.0]
[1721889579482,29.5,171.36,171.27,20.0]
[1721889580212,1.45937306,171.35,171.25,20.0]
[1721889580386,1.45937306,171.35,171.26,45.0]
[1721889580580,29.5,171.36,171.27,20.0]
[1721889580910,1.45936903,171.35,171.27,20.0]
[1721889581100,29.5,171.33,171.25,20.0]
[1721889581403,1.4595865,171.32,171.23,20.0]
[1721889581602,29.5,171.3,171.22,35.4751]
[1721889581791,29.5,171.3,171.22,15.4751]
[1721889582208,29.5,171.3,171.23,20.0]
[1721889582587,29.5,171.3,171.22,15.4751]
[1721889582901,35.6089,171.3,171.21,20.0]
[1721889583791,35.6089,171.3,171.22,45.0]
[1721889584995,35.6089,171.3,171.22,65.0]
[1721889585602,418.7,171.35,171.27,20.0]
[1721889585802,20.0,171.34,171.27,20.0]
[1721889589615,21.45939893,171.34,171.25,20.0]
[1721889589909,29.5,171.32,171.23,20.0]
[1721889590220,29.5,171.32,171.24,45.0]
[1721889590914,20.0,171.34,171.27,20.0]
[1721889591093,29.5,171.35,171.28,20.93241775]
[1721889591289,29.5,171.35,171.28,0.93241775]
[1721889591889,29.5,171.35,171.27,20.93230775]
[1721889592091,29.5,171.35,171.29,20.0]
[1721889593023,35.5536,171.36,171.29,20.0]
[1721889593818,35.5536,171.36,171.3,0.93228278]
[1721889594386,35.5536,171.36,171.29,20.0]
[1721889594609,35.5536,171.36,171.29,40.0]
[1721889594995,35.5536,171.36,171.29,20.0]
[1721889596122,35.5536,171.36,171.3,0.93222176]
[1721889596327,14.74,171.31,171.29,20.0]
[1721889596498,14.74,171.31,171.27,20.0]
[1721889596817,14.74,171.31,171.28,45.0]
[1721889597693,14.74,171.32,171.28,45.0]
[1721889597893,14.74,171.32,171.29,20.0]
[1721889599107,14.74,171.32,171.28,45.0]
[1721889599312,14.74,171.31,171.28,45.0]
[1721889599818,58.96,171.36,171.29,20.0]
[1721889599995,14.74,171.31,171.29,20.0]
[1721889600190,14.74,171.31,171.28,45.0]
[1721889600409,1.45929999,171.38,171.31,20.0]
[1721889600619,14.74,171.35,171.32,20.0]
[1721889600798,14.74,171.34,171.31,20.0]
[1721889601003,22.0393,171.4,171.29,20.0]
[1721889601004,14.74,171.33,171.29,20.0]
[1721889601198,1.45907237,171.39,171.29,20.0]
[1721889601199,14.74,171.32,171.29,20.0]
[1721889601817,14.74,171.32,171.28,45.0]
[1721889602005,14.74,171.31,171.28,45.0]
[1721889602509,14.74,171.3,171.27,20.0]
[1721889603912,14.74,171.3,171.28,20.0]
[1721889604110,14.74,171.3,171.27,20.0]
[1721889604311,14.74,171.33,171.3,20.0]
[1721889604813,14.74,171.32,171.28,65.0]
[1721889605721,14.74,171.31,171.28,65.0]
[1721889606111,14.74,171.31,171.28,20.0]
[1721889606314,14.74,171.31,171.26,35.0087]
[1721889606526,14.74,171.31,171.27,45.0]
[1721889606706,14.74,171.3,171.27,45.0]
[1721889607029,14.74,171.31,171.27,45.0]
[1721889607226,14.74,171.31,171.28,20.93250999]
[1721889607536,14.74,171.32,171.28,20.0]
[1721889608426,1.45925049,171.37,171.28,20.0]
[1721889608635,14.74,171.32,171.28,20.0]
[1721889609719,14.74,171.31,171.28,20.0]
[1721889611736,14.74,171.32,171.28,40.0]
[1721889612036,14.74,171.32,171.28,20.0]
[1721889612416,14.74,171.32,171.28,40.0]
[1721889612619,14.74,171.32,171.28,20.0]
[1721889613619,14.74,171.32,171.28,40.0]
[1721889614532,14.74,171.33,171.28,40.0]
[1721889614925,14.74,171.32,171.28,40.0]
[1721889615717,389.2,171.39,171.31,20.0]
[1721889615924,389.2,171.39,171.33,20.0]
[1721889616138,14.74,171.36,171.33,20.0]
[1721889618253,389.2,171.39,171.33,54.74]
[1721889618557,14.74,171.38,171.33,54.74]
[1721889618712,389.2,171.39,171.33,54.74]
[1721889618911,14.74,171.38,171.33,54.74]
[1721889619953,22.3386,171.47,171.34,30.7241]
[1721889620128,411.5386,171.53,171.43,34.74]
[1721889620327,14.74,171.49,171.44,0.92931162]
[1721889620531,14.74,171.49,171.44,15.66931162]
[1721889621035,14.74,171.49,171.44,0.92931162]
[1721889621239,411.5386,171.53,171.44,15.66931162]
[1721889621446,14.74,171.49,171.44,15.66931162]
[1721889622450,14.74,171.5,171.45,65.0]
[1721889622624,14.74,171.49,171.45,65.0]
[1721889623224,411.5386,171.53,171.45,79.74]
[1721889623418,22.3386,171.53,171.45,79.74]
[1721889623636,14.74,171.51,171.45,79.74]
[1721889623841,0.8072145,171.54,171.47,20.0]
[1721889624051,0.8072145,171.54,171.47,54.74]
[1721889624424,14.74,171.53,171.47,54.74]
[1721889624848,14.74,171.51,171.46,14.74]
[1721889625021,14.74,171.51,171.47,20.0]
[1721889625218,0.8072145,171.54,171.47,40.0]
[1721889625436,14.74,171.52,171.47,20.0]
[1721889626455,14.74,171.52,171.47,54.74]
[1721889627630,14.74,171.52,171.47,40.0]
[1721889627831,14.74,171.52,171.47,54.74]
[1721889630555,14.74,171.53,171.47,54.74]
[1721889631054,14.74,171.53,171.48,14.74]
[1721889631237,15.5472145,171.54,171.48,14.74]
[1721889631434,15.5472145,171.54,171.47,40.0]
[1721889631734,14.74,171.51,171.48,45.0]
[1721889631937,14.74,171.51,171.45,20.0]
[1721889632125,0.8072145,171.54,171.46,20.0]
[1721889632458,14.74,171.52,171.46,34.74]
[1721889632648,0.8072145,171.54,171.47,14.74]
[1721889632855,14.74,171.52,171.47,14.74]
[1721889633045,14.74,171.52,171.46,34.74]
[1721889633850,14.74,171.52,171.46,20.0]
[1721889634037,14.74,171.52,171.46,34.74]
[1721889634235,14.74,171.51,171.46,20.0]
[1721889634439,0.8072145,171.54,171.46,34.74]
[1721889634654,14.74,171.53,171.48,20.0]
[1721889635529,0.8072145,171.54,171.53,40.0]
[1721889635729,0.8072145,171.54,171.51,40.0]
[1721889635923,0.8072145,171.54,171.49,31.27316655]
[1721889636258,14.74,171.51,171.45,40.0]
[1721889636551,14.74,171.52,171.45,40.0]
[1721889636757,14.74,171.52,171.46,14.74]
[1721889636920,14.74,171.52,171.47,14.74]
[1721889637126,15.5472145,171.54,171.48,34.74]
[1721889637748,0.8072145,171.54,171.49,14.74]
[1721889637951,0.8072145,171.54,171.51,14.74]
[1721889638449,0.8072145,171.54,171.52,34.74]
[1721889638934,0.8072145,171.54,171.53,34.74]
[1721889639138,0.8072145,171.54,171.53,79.74]
[1721889639549,0.8072145,171.54,171.53,65.0]
[1721889639850,0.8072145,171.54,171.53,79.74]
[1721889643133,0.8072145,171.54,171.53,94.48]
[1721889644050,0.8072145,171.54,171.53,79.74]
[1721889644463,0.8072145,171.54,171.53,88.09611099]
[1721889644658,14.74,171.65,171.6,20.0]
[1721889644847,14.74,171.66,171.6,34.74]
[1721889645155,21.0964,171.68,171.63,20.0]
[1721889645632,14.74,171.67,171.63,20.0]
[1721889645832,6.3564,171.68,171.61,34.74]
[1721889646047,14.74,171.67,171.61,34.74]
[1721889646243,6.3564,171.68,171.62,34.74]
[1721889646447,21.0964,171.68,171.62,34.74]
[1721889646862,14.74,171.67,171.62,34.74]
[1721889647159,389.2,171.7,171.63,20.0]
[1721889647343,14.74,171.69,171.63,54.74]
[1721889647865,14.74,171.68,171.63,20.0]
[1721889648048,14.74,171.66,171.61,20.0]
[1721889648244,1.45635899,171.69,171.61,40.0]
[1721889648646,7.48635899,171.69,171.59,40.0]
[1721889648850,29.37,171.66,171.53,20.0]
[1721889649162,390.65707277,171.65,171.53,20.0]
[1721889649473,20.0,171.64,171.53,20.0]
[1721889649649,395.3015,171.63,171.51,20.0]
[1721889649855,1.4572691,171.62,171.51,20.0]
[1721889650152,16.1674,171.61,171.51,20.0]
[1721889650353,1.45746035,171.6,171.48,40.0]
[1721889650962,1.45729388,171.6,171.49,20.0]
[1721889651764,21.45729388,171.6,171.5,20.0]
[1721889652568,21.45729388,171.6,171.51,20.0]
[1721889652750,21.45729388,171.6,171.5,20.0]
[1721889653075,410.65729388,171.6,171.49,20.0]
[1721889653747,410.65729388,171.6,171.5,20.0]
[1721889655061,410.65729388,171.6,171.48,20.0]
[1721889656256,409.2,171.6,171.51,20.0]
[1721889656455,409.2,171.6,171.5,20.0]
[1721889656654,409.2,171.6,171.51,20.0]
[1721889657256,1.45743889,171.59,171.51,20.0]
[1721889657551,409.2,171.6,171.51,20.0]
[1721889657761,409.2,171.6,171.49,20.0]
[1721889658367,409.2,171.6,171.5,20.0]
[1721889661658,1.45743883,171.59,171.5,20.0]
[1721889662071,390.65743883,171.59,171.5,20.0]
[1721889662272,6.6638,171.58,171.48,6.09515186]
[1721889662577,1.45770669,171.57,171.48,6.09515186]
[1721889664375,6.6638,171.58,171.49,40.0]
[1721889664961,6.6638,171.58,171.51,20.0]
[1721889665357,8.12124179,171.58,171.51,20.0]
[1721889665765,6.6638,171.58,171.49,40.0]
[1721889666055,6.6638,171.58,171.51,20.0]
[1721889667152,6.6638,171.58,171.51,40.0]
[1721889667469,17.55,171.65,171.51,40.0]
[1721889667470,21.9086,171.66,171.56,20.0]
[1721889667680,21.9086,171.66,171.57,20.0]
[1721889668261,14.69,171.64,171.58,14.69]
[1721889669060,21.9086,171.66,171.59,20.0]
[1721889669259,14.69,171.65,171.59,34.69]
[1721889669466,36.5986,171.66,171.6,14.69]
[1721889669661,21.9086,171.66,171.6,14.69]
[1721889669859,36.5986,171.66,171.6,14.69]
[1721889670286,21.9086,171.66,171.59,20.0]
[1721889670959,23.36524312,171.66,171.55,40.0]
[1721889671166,23.36524312,171.66,171.56,20.0]
[1721889671364,23.36524312,171.66,171.55,40.0]
[1721889672086,1.11305107,171.65,171.55,40.0]
[1721889673069,21.9086,171.66,171.55,40.0]
[1721889673272,21.9086,171.66,171.58,20.0]
[1721889675379,1.45672415,171.65,171.56,20.0]
[1721889675594,21.9086,171.66,171.56,20.0]
[1721889675595,1.45688955,171.64,171.56,20.0]
[1721889677369,1.45688955,171.64,171.55,20.0]
[1721889677693,1.45707652,171.65,171.55,20.0]
[1721889677879,1.45707652,171.64,171.53,20.0]
[1721889678475,1.45707652,171.64,171.54,20.0]
[1721889679688,1.45707652,171.64,171.53,26.09357667]
[1721889680000,1.45707652,171.64,171.53,6.09357667]
[1721889680183,1.45707652,171.64,171.54,20.0]
[1721889680996,1.45707652,171.64,171.55,20.0]
[1721889681496,1.45725238,171.65,171.55,20.0]
[1721889681997,103.9786,171.66,171.55,20.0]
[1721889681998,52.73574048,171.66,171.55,20.0]
[1721889682184,23.36537698,171.66,171.58,20.0]
[1721889682387,23.36537698,171.66,171.59,20.0]
[1721889682585,21.9086,171.66,171.55,40.0]
[1721889682787,411.1086,171.66,171.55,40.0]
[1721889682985,411.1086,171.66,171.57,20.0]
[1721889683185,411.1086,171.66,171.55,40.0]
[1721889683688,1.45693895,171.65,171.55,20.0]
[1721889683891,15.2844,171.62,171.53,6.09357667]
[1721889684072,1.45729861,171.61,171.53,6.09357667]
[1721889684683,15.2844,171.62,171.54,40.0]
[1721889685096,15.2844,171.62,171.56,20.0]
[1721889685301,15.2844,171.62,171.56,40.0]
[1721889686077,15.2844,171.62,171.56,20.0]
[1721889686375,15.2844,171.62,171.56,40.0]
[1721889686786,6.2209,171.63,171.56,40.0]
[1721889686982,6.2209,171.63,171.58,40.0]
[1721889687901,6.2209,171.63,171.56,40.0]
[1721889688075,6.2209,171.63,171.53,7.01988591]
[1721889688076,6.2209,171.63,171.54,20.0]
[1721889688272,6.2209,171.63,171.54,20.92707682]
[1721889689395,6.2209,171.63,171.54,20.0]
[1721889690104,6.2209,171.63,171.57,20.0]
[1721889690288,6.2209,171.63,171.58,34.69]
[1721889691203,14.69,171.62,171.58,20.0]
[1721889691387,14.69,171.61,171.55,54.69]
[1721889691810,14.69,171.59,171.53,46.09343252]
[1721889691989,14.69,171.58,171.53,6.09343252]
[1721889693086,14.69,171.59,171.54,14.69]
[1721889693406,389.2,171.62,171.55,14.69]
[1721889693592,14.69,171.61,171.55,14.69]
[1721889693785,14.69,171.6,171.54,34.69]
[1721889694712,389.2,171.62,171.54,34.69]
[1721889694917,14.69,171.6,171.54,34.69]
[1721889695084,14.69,171.6,171.54,35.61708861]
[1721889695408,14.69,171.6,171.55,14.69]
[1721889696315,14.69,171.6,171.54,34.69]
[1721889696706,14.69,171.59,171.53,20.78343252]
[1721889696884,14.69,171.58,171.53,40.78343252]
[1721889697591,14.69,171.58,171.53,6.09343252]
[1721889698295,6.2209,171.63,171.57,20.0]
[1721889698480,14.69,171.62,171.57,14.69]
[1721889698683,14.69,171.62,171.55,40.0]
[1721889698684,14.69,171.62,171.56,14.69]
[1721889698884,14.69,171.61,171.55,54.69]
[1721889699517,14.69,171.59,171.53,26.09343252]
[1721889699812,14.69,171.59,171.54,20.0]
[1721889700011,14.69,171.58,171.53,6.09413038]
[1721889700592,14.69,171.58,171.53,26.09413038]
[1721889700901,15.1798,171.66,171.58,20.0]
[1721889701207,15.1798,171.66,171.58,40.0]
[1721889701208,14.69,171.63,171.58,40.0]
[1721889701408,15.1798,171.66,171.58,20.0]
[1721889701409,14.69,171.61,171.58,20.0]
[1721889701717,14.69,171.6,171.56,20.0]
[1721889701893,14.69,171.6,171.55,14.69]
[1721889702095,14.69,171.61,171.56,20.0]
[1721889702318,14.69,171.63,171.57,14.69]
[1721889702517,14.69,171.63,171.58,20.0]
[1721889702820,14.69,171.62,171.58,20.0]
[1721889703714,14.69,171.63,171.58,20.0]
[1721889704221,14.69,171.62,171.57,14.69]
[1721889704419,14.69,171.61,171.56,34.69]
[1721889706225,14.69,171.63,171.56,34.69]
[1721889706401,14.69,171.63,171.57,20.92649343]
[1721889706597,14.69,171.63,171.58,0.92650382]
[1721889708298,404.3798,171.66,171.57,34.69]
[1721889708495,14.69,171.63,171.57,34.69]
[1721889709622,14.69,171.62,171.57,20.0]
[1721889713303,1.45689801,171.65,171.57,20.0]
[1721889713505,14.69,171.63,171.57,20.0]
[1721889713923,404.3798,171.66,171.57,34.69]
[1721889714224,14.69,171.64,171.58,14.69]
[1721889714723,14.69,171.64,171.57,54.69]
[1721889715657,14.69,171.61,171.54,26.09323577]
[1721889715935,14.69,171.61,171.54,40.78323577]
[1721889716297,389.2,171.66,171.61,20.0]
[1721889716524,389.2,171.66,171.62,14.69]
[1721889718531,389.2,171.67,171.62,14.69]
[1721889718830,14.69,171.66,171.6,14.69]
[1721889720115,14.69,171.65,171.6,14.69]
[1721889720614,14.69,171.65,171.6,34.69]
[1721889721312,14.69,171.65,171.6,14.69]
[1721889721739,14.69,171.62,171.56,6.09232918]
[1721889721923,14.69,171.62,171.56,20.78232918]
[1721889722114,14.69,171.62,171.56,6.09232918]
[1721889722313,14.69,171.61,171.56,26.09232918]
[1721889723037,14.69,171.64,171.58,34.69]
[1721889723242,14.69,171.65,171.59,14.69]
[1721889723446,411.8845,171.67,171.61,34.69]
[1721889723619,426.5745,171.67,171.61,20.0]
[1721889723943,411.8845,171.67,171.6,14.69]
[1721889724114,14.69,171.66,171.6,14.69]
[1721889724317,14.69,171.66,171.61,20.0]
[1721889724519,403.89,171.66,171.61,20.0]
[1721889724828,389.2,171.66,171.62,14.69]
[1721889725035,389.2,171.66,171.63,20.0]
[1721889725830,389.2,171.66,171.63,34.69]
[1721889726145,389.2,171.66,171.63,20.0]
[1721889726551,389.2,171.66,171.61,20.0]
[1721889727850,389.2,171.66,171.59,20.0]
[1721889730343,389.2,171.7,171.59,20.0]
[1721889730545,390.65676227,171.7,171.59,20.0]
[1721889731141,408.20676227,171.7,171.59,20.0]
[1721889731953,390.65676227,171.7,171.59,20.0]
[1721889733748,408.20676227,171.7,171.58,15.4151]
[1721889734431,443.35676227,171.7,171.58,15.4151]
[1721889734854,17.55,171.68,171.57,26.09250821]
[1721889735056,1.45698262,171.67,171.57,6.09250821]
[1721889735235,15.3287,171.65,171.57,6.09250821]
[1721889735560,1.45699712,171.64,171.57,6.09250821]
[1721889735739,6.5218,171.66,171.59,20.0]
[1721889736636,6.5218,171.66,171.57,6.09250821]
[1721889738246,6.5218,171.66,171.58,40.0]
[1721889739850,6.5218,171.66,171.6,20.0]
[1721889740232,6.5218,171.66,171.58,20.0]
[1721889740437,6.5218,171.66,171.59,20.0]
[1721889740647,6.5218,171.66,171.57,26.09250821]
[1721889740961,6.5218,171.66,171.59,20.0]
[1721889741257,6.5218,171.66,171.57,6.09250821]
[1721889742154,6.5218,171.66,171.58,20.0]
[1721889742962,6.5218,171.66,171.57,26.09250821]
[1721889743666,6.5218,171.66,171.6,20.0]
[1721889743838,6.5218,171.66,171.58,40.0]
[1721889744038,6.5218,171.66,171.58,20.0]
[1721889744839,6.5218,171.66,171.57,26.09304579]
[1721889745239,6.5218,171.66,171.57,6.09304579]
[1721889745671,6.5218,171.66,171.58,20.0]
[1721889745867,6.5218,171.66,171.58,40.0]
[1721889746363,6.5218,171.66,171.58,54.69]
[1721889746364,14.69,171.64,171.58,54.69]
[1721889746946,14.69,171.64,171.58,34.69]
[1721889748663,14.69,171.64,171.58,54.69]
[1721889749438,14.69,171.59,171.57,6.09304579]
[1721889749643,14.69,171.58,171.53,20.0]
[1721889749857,14.69,171.58,171.52,14.69]
[1721889750060,14.69,171.58,171.52,20.78450553]
[1721889750250,14.69,171.57,171.52,20.78450553]
[1721889750459,14.69,171.57,171.52,6.09450553]
[1721889751367,14.69,171.57,171.52,20.78450553]
[1721889751749,14.69,171.58,171.52,20.78450553]
[1721889752373,14.69,171.56,171.52,6.09450553]
[1721889752870,1.45747831,171.61,171.52,6.09450553]
[1721889753085,14.69,171.58,171.52,20.78450553]
[1721889753668,14.69,171.58,171.52,40.78450553]
[1721889754649,390.65736609,171.61,171.55,14.69]